fUST/lending_fUST_20250725
["ID","MTS","AMOUNT","RATE_DAILY","PERIOD"]
[374677964,1753409451444,-797.28,0.00018605,2]
[374677965,1753409451453,-460.0,0.00018605,2]
[374677966,1753409451463,-460.0,0.00018609,2]
[374677967,1753409451473,-166.31452882,0.00018621,2]
[374677968,1753409451483,-1000.0,0.00018621,2]
[374677969,1753409451493,-1000.0,0.00018621,2]
[374677970,1753409451503,-370.28754068,0.00018738,2]
[374677971,1753409451513,-500.0,0.0001882,2]
[374677972,1753409451523,-563.0,0.0001885,2]
[374677973,1753409451533,-623.9,0.00018864,3]
[374677974,1753409451542,-311.96,0.00018864,3]
[374677975,1753409451552,-4269.03661666,0.00018871,2]
[374677976,1753409451699,-2155.12338334,0.00018871,2]
[374677977,1753409451709,-460.0,0.00018871,2]
[374677978,1753409451718,-460.0,0.00018871,2]
[374677979,1753409451728,-245.36988716,0.00018871,2]
[374677980,1753409451737,-460.0,0.00018871,2]
[374677981,1753409451746,-564.63,0.00018871,2]
[374677982,1753409451755,-2336.59,0.00018871,2]
[374677983,1753409451765,-465.55409708,0.00018871,2]
[374677984,1753409451773,-471.45,0.00018871,2]
[374677985,1753409451783,-497.13,0.00018871,2]
[374677986,1753409451794,-2700.29,0.00018871,2]
[374677987,1753409451804,-460.0,0.00018871,2]
[374677988,1753409451813,-499.17,0.00018872,2]
[374677989,1753409451822,-460.0,0.00018872,2]
[374677990,1753409451831,-557.44,0.00018872,2]
[374677991,1753409451841,-460.0,0.00018872,2]
[374677992,1753409451851,-460.0,0.00018872,2]
[374677993,1753409451860,-460.0,0.00018872,2]
[374677994,1753409451869,-460.0,0.00018872,2]
[374677995,1753409451879,-572.11,0.00018872,2]
[374677996,1753409451889,-466.93479341,0.00018872,2]
[374677997,1753409451898,-460.0,0.00018872,2]
[374677998,1753409451908,-460.0,0.00018872,2]
[374677999,1753409451918,-460.0,0.00018872,2]
[374678000,1753409451927,-2158.4,0.00018872,2]
[374678001,1753409451937,-460.0,0.00018872,2]
[374678002,1753409451947,-578.19,0.00018872,2]
[374678003,1753409451956,-1022.05,0.00018872,2]
[374678004,1753409451966,-460.0,0.00018872,2]
[374678005,1753409451975,-586.06,0.00018872,2]
[374678006,1753409451985,-460.0,0.00018872,2]
[374678007,1753409451994,-460.0,0.00018872,2]
[374678008,1753409452003,-460.0,0.00018872,2]
[374678009,1753409452013,-1123.36,0.00018872,2]
[374678010,1753409452023,-460.0,0.00018872,2]
[374678011,1753409452034,-770.54,0.00018872,2]
[374678012,1753409452043,-665.53,0.00018872,2]
[374678013,1753409452053,-460.0,0.00018872,2]
[374678014,1753409452063,-3950.3,0.00018872,2]
[374678015,1753409452072,-460.0,0.00018872,2]
[374678016,1753409452082,-460.0,0.00018872,2]
[374678017,1753409452091,-808.0,0.00018872,2]
[374678018,1753409452100,-563.37,0.00018872,2]
[374678019,1753409452110,-531.0,0.00018872,2]
[374678020,1753409452119,-816.24,0.00018872,2]
[374678021,1753409452131,-460.0,0.00018872,2]
[374678022,1753409452145,-619.53,0.00018872,2]
[374678023,1753409452155,-647.37,0.00018872,2]
[374678024,1753409452164,-840.74,0.00018872,2]
[374678025,1753409452176,-1323.28,0.00018872,2]
[374678026,1753409452186,-3171.19,0.00018872,2]
[374678027,1753409452195,-460.0,0.00018872,2]
[374678028,1753409452205,-460.0,0.00018872,2]
[374678029,1753409452215,-460.0,0.00018872,2]
[374678030,1753409452228,-1309.34,0.00018872,2]
[374678031,1753409452237,-5361.29,0.00018872,2]
[374678032,1753409452247,-2015.54,0.00018872,2]
[374678033,1753409452256,-659.98,0.00018872,2]
[374678034,1753409452265,-1687.78,0.00018872,2]
[374678035,1753409452276,-823.12,0.00018872,2]
[374678036,1753409452287,-460.0,0.00018872,2]
[374678037,1753409452296,-460.0,0.00018872,2]
[374678038,1753409452305,-970.64,0.00018872,2]
[374678039,1753409452315,-460.0,0.00018872,2]
[374678040,1753409452324,-460.0,0.00018872,2]
[374678041,1753409452333,-460.0,0.00018873,2]
[374678042,1753409452343,-460.0,0.00018873,2]
[374678043,1753409452352,-335.64667636,0.00018873,2]
[374678044,1753409452361,-460.0,0.00018873,2]
[374678045,1753409452371,-460.0,0.00018873,2]
[374678046,1753409452380,-692.09,0.00018873,2]
[374678047,1753409452389,-715.95,0.00018873,2]
[374678048,1753409452398,-460.0,0.00018873,2]
[374678049,1753409452408,-460.0,0.00018873,2]
[374678050,1753409452417,-654.37,0.00018873,2]
[374678051,1753409452427,-460.0,0.00018873,2]
[374678052,1753409452436,-460.0,0.00018873,2]
[374678053,1753409452445,-531.53,0.00018873,2]
[374678054,1753409452455,-1116.45,0.00018873,2]
[374678055,1753409452464,-797.93,0.00018873,2]
[374678056,1753409452474,-460.0,0.00018873,2]
[374678057,1753409452483,-460.0,0.00018873,2]
[374678058,1753409452493,-460.0,0.00018873,2]
[374678059,1753409452502,-460.0,0.00018873,2]
[374678060,1753409452512,-460.0,0.00018873,2]
[374678061,1753409452521,-460.0,0.00018873,2]
[374678062,1753409452533,-460.0,0.00018873,2]
[374678063,1753409452542,-1134.46,0.00018873,2]
[374678064,1753409452551,-902.66,0.00018873,2]
[374678065,1753409452561,-1939.11,0.00018873,2]
[374678066,1753409452571,-533.38,0.00018873,2]
[374678067,1753409452580,-460.0,0.00018873,2]
[374678068,1753409452589,-814.82,0.00018873,2]
[374678069,1753409452599,-460.0,0.00018873,2]
[374678070,1753409452608,-3099.06,0.00018873,2]
[374678071,1753409452618,-460.0,0.00018873,2]
[374678072,1753409452627,-886.31,0.00018873,2]
[374678073,1753409452636,-2951.01,0.00018873,2]
[374678074,1753409452645,-2930.75,0.00018873,2]
[374678075,1753409452655,-460.0,0.00018874,2]
[374678076,1753409452666,-811.31,0.00018874,2]
[374678077,1753409452675,-3954.05,0.00018874,2]
[374678078,1753409452685,-2474.25,0.00018874,2]
[374678079,1753409452694,-460.0,0.00018874,2]
[374678080,1753409452704,-460.0,0.00018876,2]
[374678081,1753409452714,-460.0,0.00018876,2]
[374678082,1753409452723,-460.0,0.00018876,2]
[374678083,1753409452733,-460.0,0.00018876,2]
[374678084,1753409452742,-460.0,0.00018876,2]
[374678085,1753409452752,-1405.99,0.00018876,2]
[374678086,1753409452761,-460.0,0.00018876,2]
[374678087,1753409452895,-330.92230677,0.00018876,2]
[374678088,1753409452905,-506.75,0.00018876,2]
[374678089,1753409452914,-3338.64763434,0.00018876,2]
[374678090,1753409452924,-460.0,0.00018876,2]
[374678091,1753409452934,-497.95,0.00018876,2]
[374678092,1753409452943,-460.0,0.00018876,2]
[374678093,1753409452953,-468.34,0.00018876,2]
[374678094,1753409452962,-542.69,0.00018876,2]
[374678095,1753409452972,-460.0,0.00018876,2]
[374678096,1753409452981,-465.03,0.00018876,2]
[374678097,1753409452991,-465.83488321,0.00018876,2]
[374678098,1753409453000,-460.0,0.00018876,2]
[374678099,1753409453010,-575.66,0.00018879,2]
[374678100,1753409453020,-460.0,0.00018879,2]
[374678101,1753409453029,-460.0,0.00018879,2]
[374678102,1753409453039,-460.0,0.00018879,2]
[374678103,1753409453048,-642.54,0.00018879,2]
[374678104,1753409453058,-460.0,0.00018879,2]
[374678105,1753409453067,-460.0,0.00018879,2]
[374678106,1753409453077,-394.4303031,0.00018879,2]
[374678107,1753409453086,-460.0,0.00018879,2]
[374678108,1753409453095,-630.85,0.00018879,2]
[374678109,1753409453106,-460.0,0.00018879,2]
[374678110,1753409453115,-460.0,0.00018879,2]
[374678111,1753409453125,-797.28,0.00018879,2]
[374678112,1753409453138,-326.26034485,0.00018879,2]
[374678113,1753409453147,-460.0,0.00018883,2]
[374678114,1753409453157,-563.0,0.00018891,2]
[374678115,1753409453166,-6287.71795838,0.000189,2]
[374678116,1753409453177,-168.0,0.00018907,2]
[374678117,1753409453186,-1000.0,0.00018908,2]
[374678118,1753409453196,-160.0,0.0001891,2]
[374678119,1753409453206,-160.0,0.0001891,2]
[374678120,1753409453217,-160.0,0.0001891,2]
[374678121,1753409453227,-160.0,0.0001891,2]
[374678122,1753409453236,-160.0,0.0001891,2]
[374678123,1753409453245,-215.93003454,0.0001891,2]
[374678124,1753409453255,-214.7599002,0.0001891,2]
[374678125,1753409453265,-476.88235691,0.00018911,2]
[374678126,1753409453274,-526.33361954,0.00018911,2]
[374678127,1753409453285,-231.20877768,0.00018911,2]
[374678128,1753409453295,-160.0,0.00018911,2]
[374678129,1753409453304,-12627.2413641,0.00018911,2]
[374678130,1753409453314,-840.4016166,0.00018911,2]
[374678131,1753409453324,-501.62725733,0.00018921,2]
[374678132,1753409453333,-501.75008675,0.00018921,2]
[374678133,1753409453343,-1000.0,0.00018921,2]
[374678134,1753409453353,-1000.0,0.00018921,2]
[374678135,1753409453362,-223.80317226,0.00019,20]
[374678136,1753409453372,-18000.0,0.00019,2]
[374678137,1753409453381,-151.0,0.00019,2]
[374678138,1753409453390,-151.0,0.00019,2]
[374678139,1753409453399,-168.0,0.00019034,2]
[374678140,1753409453409,-168.0,0.00019039,2]
[374678141,1753409453418,-168.0,0.00019071,2]
[374678142,1753409453427,-264.87730545,0.00019086,6]
[374678143,1753409453436,-168.0,0.00019093,2]
[374678144,1753409453446,-231.0,0.00019096,2]
[374678145,1753409453455,-151.0,0.000191,2]
[374678146,1753409453465,-151.0,0.000191,2]
[374678147,1753409453474,-420.0,0.00019103,2]
[374678148,1753409453483,-420.0,0.00019103,2]
[374678149,1753409453493,-1680.0,0.00019104,2]
[374678150,1753409453503,-6287.7179581,0.00019107,2]
[374678151,1753409453512,-6424.16,0.00019145,2]
[374678152,1753409453522,-460.0,0.00019145,2]
[374678153,1753409453532,-460.0,0.00019145,2]
[374678154,1753409453542,-165.68933651,0.00019145,2]
[374678155,1753409453551,-564.63,0.00019145,2]
[374678156,1753409453560,-2336.59,0.00019145,2]
[374678157,1753409453570,-471.45,0.00019145,2]
[374678158,1753409453579,-497.13,0.00019145,2]
[374678159,1753409453589,-2700.29,0.00019145,2]
[374678160,1753409453598,-460.0,0.00019145,2]
[374678161,1753409453608,-499.17,0.00019146,2]
[374678162,1753409453618,-383.55318024,0.00019146,2]
[374678163,1753409453627,-557.44,0.00019146,2]
[374678164,1753409453636,-460.0,0.00019146,2]
[374678165,1753409453646,-460.0,0.00019146,2]
[374678166,1753409453655,-460.0,0.00019146,2]
[374678167,1753409453665,-460.0,0.00019146,2]
[374678168,1753409453674,-572.11,0.00019146,2]
[374678169,1753409453683,-460.0,0.00019146,2]
[374678170,1753409453694,-460.0,0.00019146,2]
[374678171,1753409453703,-460.0,0.00019146,2]
[374678172,1753409453713,-2158.4,0.00019146,2]
[374678173,1753409453722,-460.0,0.00019146,2]
[374678174,1753409453732,-578.19,0.00019146,2]
[374678175,1753409453742,-1022.05,0.00019146,2]
[374678176,1753409453751,-460.0,0.00019146,2]
[374678177,1753409453761,-586.06,0.00019146,2]
[374678178,1753409453771,-460.0,0.00019146,2]
[374678179,1753409453780,-460.0,0.00019146,2]
[374678180,1753409453790,-460.0,0.00019146,2]
[374678181,1753409453799,-1123.36,0.00019146,2]
[374678182,1753409453809,-460.0,0.00019146,2]
[374678183,1753409453818,-770.54,0.00019146,2]
[374678184,1753409453828,-665.53,0.00019146,2]
[374678185,1753409453837,-460.0,0.00019146,2]
[374678186,1753409453847,-3950.3,0.00019146,2]
[374678187,1753409453858,-460.0,0.00019146,2]
[374678188,1753409453867,-460.0,0.00019146,2]
[374678189,1753409453877,-808.0,0.00019146,2]
[374678190,1753409453887,-563.37,0.00019146,2]
[374678191,1753409453897,-531.0,0.00019146,2]
[374678192,1753409453907,-816.24,0.00019146,2]
[374678193,1753409453917,-460.0,0.00019146,2]
[374678194,1753409453927,-619.53,0.00019146,2]
[374678195,1753409453936,-647.37,0.00019146,2]
[374678196,1753409453946,-840.74,0.00019146,2]
[374678197,1753409453956,-1323.28,0.00019146,2]
[374678198,1753409453965,-3171.19,0.00019146,2]
[374678199,1753409453975,-460.0,0.00019146,2]
[374678200,1753409453985,-465.78350436,0.00019146,2]
[374678201,1753409453995,-460.0,0.00019146,2]
[374678202,1753409454004,-1309.34,0.00019146,2]
[374678203,1753409454014,-5361.29,0.00019146,2]
[374678204,1753409454024,-2015.54,0.00019146,2]
[374678205,1753409454034,-659.98,0.00019146,2]
[374678206,1753409454044,-823.12,0.00019146,2]
[374678207,1753409454053,-1687.78,0.00019146,2]
[374678208,1753409454063,-460.0,0.00019146,2]
[374678209,1753409454073,-460.0,0.00019146,2]
[374678210,1753409454084,-970.64,0.00019146,2]
[374678211,1753409454094,-460.0,0.00019146,2]
[374678212,1753409454110,-397.3929076,0.00019146,2]
[374678213,1753409454120,-460.0,0.00019147,2]
[374678214,1753409454130,-200.96238211,0.00019147,2]
[374678215,1753409454142,-460.0,0.00019147,2]
[374678216,1753409454151,-460.0,0.00019147,2]
[374678217,1753409454162,-692.09,0.00019147,2]
[374678218,1753409454171,-715.95,0.00019147,2]
[374678219,1753409454182,-460.0,0.00019147,2]
[374678220,1753409454191,-460.0,0.00019147,2]
[374678221,1753409454201,-654.37,0.00019147,2]
[374678222,1753409454212,-460.0,0.00019147,2]
[374678223,1753409454222,-460.0,0.00019147,2]
[374678224,1753409454231,-531.53,0.00019147,2]
[374678225,1753409454241,-1116.45,0.00019147,2]
[374678226,1753409454250,-797.93,0.00019147,2]
[374678227,1753409454260,-460.0,0.00019147,2]
[374678228,1753409454270,-460.0,0.00019147,2]
[374678229,1753409454279,-460.0,0.00019147,2]
[374678230,1753409454288,-460.0,0.00019147,2]
[374678231,1753409454298,-460.0,0.00019147,2]
[374678232,1753409454308,-460.0,0.00019147,2]
[374678233,1753409454318,-460.0,0.00019147,2]
[374678234,1753409454328,-1134.46,0.00019147,2]
[374678235,1753409454338,-902.66,0.00019147,2]
[374678236,1753409454347,-1939.11,0.00019147,2]
[374678237,1753409454357,-533.38,0.00019147,2]
[374678238,1753409454366,-460.0,0.00019147,2]
[374678239,1753409454376,-814.82,0.00019147,2]
[374678240,1753409454385,-460.0,0.00019147,2]
[374678241,1753409454395,-3099.06,0.00019147,2]
[374678242,1753409454405,-460.0,0.00019147,2]
[374678243,1753409454415,-886.31,0.00019147,2]
[374678244,1753409454425,-2951.01,0.00019147,2]
[374678245,1753409454435,-2930.75,0.00019147,2]
[374678246,1753409454445,-460.0,0.00019148,2]
[374678247,1753409454454,-460.0,0.00019148,2]
[374678248,1753409454464,-811.31,0.00019148,2]
[374678249,1753409454474,-3954.05,0.00019148,2]
[374678250,1753409454483,-2474.25,0.00019148,2]
[374678251,1753409454493,-460.0,0.00019148,2]
[374678252,1753409454503,-460.0,0.0001915,2]
[374678253,1753409454513,-460.0,0.0001915,2]
[374678254,1753409454522,-460.0,0.0001915,2]
[374678255,1753409454533,-460.0,0.0001915,2]
[374678256,1753409454543,-460.0,0.0001915,2]
[374678257,1753409454553,-460.0,0.0001915,2]
[374678258,1753409454563,-1405.99,0.0001915,2]
[374678259,1753409454573,-460.0,0.0001915,2]
[374678260,1753409454583,-506.75,0.0001915,2]
[374678261,1753409454592,-460.0,0.0001915,2]
[374678262,1753409454602,-497.95,0.0001915,2]
[374678263,1753409454611,-460.0,0.0001915,2]
[374678264,1753409454622,-468.34,0.0001915,2]
[374678265,1753409454632,-542.69,0.0001915,2]
[374678266,1753409454644,-460.0,0.0001915,2]
[374678267,1753409454654,-465.03,0.0001915,2]
[374678268,1753409454664,-460.0,0.0001915,2]
[374678269,1753409454673,-575.66,0.00019153,2]
[374678270,1753409454683,-460.0,0.00019153,2]
[374678271,1753409454693,-475.42220591,0.00019153,2]
[374678272,1753409454702,-460.0,0.00019153,2]
[374678273,1753409454712,-642.54,0.00019153,2]
[374678274,1753409454721,-473.02162169,0.00019153,2]
[374678275,1753409454731,-460.0,0.00019153,2]
[374678276,1753409454741,-460.0,0.00019153,2]
[374678277,1753409454750,-630.85,0.00019153,2]
[374678278,1753409454760,-460.0,0.00019153,2]
[374678279,1753409454769,-460.0,0.00019153,2]
[374678280,1753409454778,-797.28,0.00019153,2]
[374678281,1753409454788,-460.0,0.00019157,2]
[374678282,1753409454798,-168.0,0.00019166,2]
[374678283,1753409454807,-1000.0,0.00019168,2]
[374678284,1753409454817,-500.0,0.00019173,2]
[374678285,1753409454827,-501.28889148,0.00019173,2]
[374678286,1753409454837,-501.02068104,0.00019173,2]
[374678287,1753409454846,-526.48555026,0.00019173,2]
[374678288,1753409454856,-500.0,0.00019173,2]
[374678289,1753409454866,-500.85773411,0.00019173,2]
[374678290,1753409454875,-5000.0,0.00019178,2]
[374678291,1753409454885,-251.398372,0.00019178,2]
[374678292,1753409454894,-1680.0,0.00019198,2]
[374678293,1753409454904,-168.0,0.000192,2]
[374678294,1753409454914,-1718.52813186,0.00019205,5]
[374678295,1753409454924,-215.0738,0.00019213,2]
[374678296,1753409454934,-168.0,0.0001924,2]
[374678297,1753409454943,-168.0,0.00019241,2]
[374678298,1753409454952,-370.28754068,0.00019269,2]
[374678299,1753409454963,-6287.7179581,0.00019314,2]
[374678300,1753409454973,-3046.80440048,0.00019329,2]
[374678301,1753409454982,-98232.04246881,0.00019329,2]
[374678302,1753409454992,-168.0,0.00019382,2]
[374678303,1753409455002,-168.0,0.00019418,2]
[374678304,1753409455012,-6424.16,0.00019419,2]
[374678305,1753409455021,-460.0,0.00019419,2]
[374678306,1753409455032,-460.0,0.00019419,2]
[374678307,1753409455042,-564.63,0.00019419,2]
[374678308,1753409455052,-2336.59,0.00019419,2]
[374678309,1753409455062,-471.45,0.00019419,2]
[374678310,1753409455072,-497.13,0.00019419,2]
[374678311,1753409455082,-2700.29,0.00019419,2]
[374678312,1753409455093,-460.0,0.00019419,2]
[374678313,1753409455103,-499.17,0.0001942,2]
[374678314,1753409455114,-557.44,0.0001942,2]
[374678315,1753409455124,-460.0,0.0001942,2]
[374678316,1753409455139,-309.74520784,0.0001942,2]
[374678317,1753409455149,-466.31237109,0.0001942,2]
[374678318,1753409455159,-460.0,0.0001942,2]
[374678319,1753409455171,-572.11,0.0001942,2]
[374678320,1753409455182,-460.0,0.0001942,2]
[374678321,1753409455192,-460.0,0.0001942,2]
[374678322,1753409455204,-460.0,0.0001942,2]
[374678323,1753409455214,-2158.4,0.0001942,2]
[374678324,1753409455224,-460.0,0.0001942,2]
[374678325,1753409455234,-578.19,0.0001942,2]
[374678326,1753409455244,-1022.05,0.0001942,2]
[374678327,1753409455254,-460.0,0.0001942,2]
[374678328,1753409455263,-586.06,0.0001942,2]
[374678329,1753409455273,-460.0,0.0001942,2]
[374678330,1753409455286,-460.0,0.0001942,2]
[374678331,1753409455296,-460.0,0.0001942,2]
[374678332,1753409455305,-1123.36,0.0001942,2]
[374678333,1753409455315,-460.0,0.0001942,2]
[374678334,1753409455325,-770.54,0.0001942,2]
[374678335,1753409455335,-665.53,0.0001942,2]
[374678336,1753409455345,-460.0,0.0001942,2]
[374678337,1753409455355,-3950.3,0.0001942,2]
[374678338,1753409455364,-150.34624621,0.0001942,2]
[374678339,1753409455532,-772.10094707,0.00018325,2]
[374678340,1753409455786,-493.28256153,0.00018051,2]
[374678341,1753409456178,-460.0,0.00017501,2]
[374678342,1753409456193,-991.34743847,0.00018051,2]
[374678343,1753409456203,-158.07995221,0.00018325,2]
[374678344,1753409456217,-1066.53910072,0.00018325,2]
[374678345,1753409456227,-725.19173607,0.00018325,2]
[374678346,1753409456514,-460.0,0.00017501,2]
[374678347,1753409456524,-460.0,0.00017501,2]
[374678348,1753409456535,-460.0,0.00017502,2]
[374678349,1753409456546,-424.87060069,0.00017775,2]
[374678350,1753409456557,-759.43826393,0.00018325,2]
[374678351,1753409456566,-1996.72,0.00018599,2]
[374678352,1753409456576,-1484.63,0.00018599,2]
[374678353,1753409456586,-906.72119795,0.00018873,2]
[374678354,1753409456603,-460.0,0.00017775,2]
[374678355,1753409456614,-1089.99880205,0.00018873,2]
[374678356,1753409456624,-1484.63,0.00018873,2]
[374678357,1753409456634,-1996.72,0.00019147,2]
[374678358,1753409456644,-1484.63,0.00019147,2]
[374678359,1753409456654,-309.65375379,0.0001942,2]
[374678360,1753409456663,-460.0,0.0001942,2]
[374678361,1753409456674,-808.0,0.0001942,2]
[374678362,1753409456684,-563.37,0.0001942,2]
[374678363,1753409456694,-531.0,0.0001942,2]
[374678364,1753409456704,-816.24,0.0001942,2]
[374678365,1753409456714,-460.0,0.0001942,2]
[374678366,1753409456723,-619.53,0.0001942,2]
[374678367,1753409456733,-647.37,0.0001942,2]
[374678368,1753409456743,-840.74,0.0001942,2]
[374678369,1753409456753,-1323.28,0.0001942,2]
[374678370,1753409456762,-3171.19,0.0001942,2]
[374678371,1753409456772,-460.0,0.0001942,2]
[374678372,1753409456782,-460.0,0.0001942,2]
[374678373,1753409456792,-1309.34,0.0001942,2]
[374678374,1753409456802,-5361.29,0.0001942,2]
[374678375,1753409456811,-2015.54,0.0001942,2]
[374678376,1753409456822,-659.98,0.0001942,2]
[374678377,1753409456832,-823.12,0.0001942,2]
[374678378,1753409456842,-1687.78,0.0001942,2]
[374678379,1753409456851,-460.0,0.0001942,2]
[374678380,1753409456862,-460.0,0.0001942,2]
[374678381,1753409456872,-970.64,0.0001942,2]
[374678382,1753409456882,-460.0,0.0001942,2]
[374678383,1753409456892,-460.0,0.00019421,2]
[374678384,1753409456903,-460.0,0.00019421,2]
[374678385,1753409456913,-460.0,0.00019421,2]
[374678386,1753409456923,-692.09,0.00019421,2]
[374678387,1753409456933,-715.95,0.00019421,2]
[374678388,1753409456943,-460.0,0.00019421,2]
[374678389,1753409456953,-460.0,0.00019421,2]
[374678390,1753409456963,-446.55779516,0.00019421,2]
[374678391,1753409522355,300.0,0.000175,2]
[374678392,1753409538171,7008.33832933,0.00017402,2]
[374678393,1753409538193,30000.0,0.00017402,2]
[374678394,1753409538217,30000.0,0.00017402,2]
[374678395,1753409538241,30000.0,0.00017402,2]
[374678396,1753409538264,30000.0,0.00017402,2]
[374678397,1753409538287,30000.0,0.00017402,2]
[374678398,1753409538310,30000.0,0.00017402,2]
[374678399,1753409538332,30000.0,0.00017402,2]
[374678400,1753409538354,30000.0,0.00017402,2]
[374678401,1753409538377,30000.0,0.00017402,2]
[374678402,1753409538398,30000.0,0.00017402,2]
[374678403,1753409538420,30000.0,0.00017402,2]
[374678404,1753409538442,30000.0,0.00017402,2]
[374678405,1753409538463,2991.66167067,0.00017402,2]
[374678406,1753409582845,300.0,0.000175,2]
[374678407,1753409585590,5000.0,0.000175,2]
[374678408,1753409589718,200.78056652,0.000174,2]
[374678409,1753409590071,200.78056652,0.00017401,2]
[374678410,1753409601300,5000.0,0.000175,2]
[374678411,1753409616652,5000.0,0.000175,2]
[374678412,1753409637115,5000.0,0.000175,2]
[374678413,1753409642866,300.0,0.00017499,2]
[374678414,1753409653057,5000.0,0.000175,2]
[374678415,1753409671141,1006.77719629,0.000175,2]
[374678416,1753409671166,3993.22280371,0.000175,2]
[374678417,1753409677609,262.23239173,0.000175,2]
[374678418,1753409677636,180.25203402,0.000175,2]
[374678419,1753409677663,189.78602566,0.000175,2]
[374678420,1753409677690,557.13762055,0.000175,2]
[374678421,1753409677718,259.37276609,0.000175,2]
[374678422,1753409677747,212.32002327,0.000175,2]
[374678423,1753409677776,500.0,0.000175,2]
[374678424,1753409677804,500.0,0.000175,2]
[374678425,1753409677838,500.0,0.000175,2]
[374678426,1753409677870,500.0,0.000175,2]
[374678427,1753409677897,500.0,0.000175,2]
[374678428,1753409677924,500.0,0.000175,2]
[374678429,1753409677950,500.0,0.000175,2]
[374678430,1753409677983,500.0,0.000175,2]
[374678431,1753409678011,500.0,0.000175,2]
[374678432,1753409678044,500.0,0.000175,2]
[374678433,1753409678254,500.0,0.000175,2]
[374678434,1753409678288,500.0,0.000175,2]
[374678435,1753409678322,500.0,0.000175,2]
[374678436,1753409678351,500.0,0.000175,2]
[374678437,1753409678385,500.0,0.000175,2]
[374678438,1753409678411,500.0,0.000175,2]
[374678439,1753409678438,500.0,0.000175,2]
[374678440,1753409678466,500.0,0.000175,2]
[374678441,1753409678495,500.0,0.000175,2]
[374678442,1753409678523,500.0,0.000175,2]
[374678443,1753409678550,500.0,0.000175,2]
[374678444,1753409678581,500.0,0.000175,2]
[374678445,1753409678621,500.0,0.000175,2]
[374678446,1753409678649,500.0,0.000175,2]
[374678447,1753409678678,500.0,0.000175,2]
[374678448,1753409678707,500.0,0.000175,2]
[374678449,1753409678735,500.0,0.000175,2]
[374678450,1753409678764,500.0,0.000175,2]
[374678451,1753409678792,500.0,0.000175,2]
[374678452,1753409678819,500.0,0.000175,2]
[374678453,1753409678846,500.0,0.000175,2]
[374678454,1753409678876,500.0,0.000175,2]
[374678455,1753409678898,500.0,0.000175,2]
[374678456,1753409678924,500.0,0.000175,2]
[374678457,1753409678955,500.0,0.000175,2]
[374678458,1753409678984,551.64821454,0.000175,2]
[374678459,1753409686496,5000.0,0.000175,2]
[374678460,1753409697435,1294.02812043,0.00017403,2]
[374678461,1753409697458,30000.0,0.00017403,2]
[374678462,1753409697480,30000.0,0.00017403,2]
[374678463,1753409697504,30000.0,0.00017403,2]